fUSD/lending_fUSD_20250820
["ID","MTS","AMOUNT","RATE_DAILY","PERIOD"]
[380342989,1755699352266,-1466.24,0.00030136,120]
[380342990,1755699352293,-1466.24,0.00030136,120]
[380342991,1755699352320,-1534.49,0.00030136,120]
[380342992,1755699352347,-1466.24,0.00030136,120]
[380342993,1755699352375,-1466.24,0.00030136,120]
[380342994,1755699352402,-1466.24,0.00030136,120]
[380342995,1755699352428,-1466.24,0.00030136,120]
[380342996,1755699352455,-1466.38325142,0.00030136,120]
[380342997,1755699352484,-436.43,0.00030136,120]
[380342998,1755699352511,-400.0,0.00030136,120]
[380342999,1755699352541,-1466.4,0.00030136,120]
[380343000,1755699352567,-400.0,0.00030136,120]
[380343001,1755699352595,-1631.72,0.00030136,120]
[380343002,1755699352629,-1991.27,0.00030136,120]
[380343003,1755699352658,-632.73,0.00030136,120]
[380343004,1755699352687,-400.0,0.00030136,120]
[380343005,1755699352720,-400.0,0.00030136,120]
[380343006,1755699352750,-944.59,0.00030136,120]
[380343007,1755699352781,-993.6,0.00030136,120]
[380343008,1755699352807,-400.0,0.00030136,120]
[380343009,1755699352833,-400.0500896,0.00030136,120]
[380343010,1755699352862,-228.60712464,0.00030136,120]
[380343011,1755699352888,-400.0,0.00030136,120]
[380343012,1755699352915,-1112.39,0.00030136,120]
[380343013,1755699352942,-1285.01,0.00030136,120]
[380343014,1755699352970,-1424.81,0.00030136,120]
[380343015,1755699352997,-1297.53,0.00030136,120]
[380343016,1755699353024,-1279.3,0.00030136,120]
[380343017,1755699353051,-400.0,0.00030136,120]
[380343018,1755699353081,-400.0,0.00030136,120]
[380343019,1755699353110,-574.12,0.00030136,120]
[380343020,1755699353139,-2328.21,0.00030136,120]
[380343021,1755699353167,-1513.36,0.00030136,120]
[380343022,1755699353193,-400.0,0.00030136,120]
[380343023,1755699353223,-940.95,0.00030136,120]
[380343024,1755699353250,-640.62,0.00030136,120]
[380343025,1755699353278,-400.0,0.00030136,120]
[380343026,1755699353304,-400.0,0.00030136,120]
[380343027,1755699353331,-278.02799131,0.00030136,120]
[380343028,1755699353358,-793.99,0.00030136,120]
[380343029,1755699353384,-400.0,0.00030136,120]
[380343030,1755699353411,-400.0,0.00030136,120]
[380343031,1755699353438,-1085.17,0.00030136,120]
[380343032,1755699353469,-1004.4,0.00030136,120]
[380343033,1755699353496,-1210.6,0.00030136,120]
[380343034,1755699353523,-531.55,0.00030136,120]
[380343035,1755699353554,-440.43,0.00030136,120]
[380343036,1755699353581,-1049.76,0.00030136,120]
[380343037,1755699353609,-1126.82,0.00030136,120]
[380343038,1755699353636,-400.0,0.00030136,120]
[380343039,1755699353662,-405.01,0.00030136,120]
[380343040,1755699353688,-898.3,0.00030136,120]
[380343041,1755699353715,-1560.84,0.00030136,120]
[380343042,1755699353744,-1425.03,0.00030136,120]
[380343043,1755699353770,-400.0,0.00030136,120]
[380343044,1755699353797,-2121.58,0.00030136,120]
[380343045,1755699353822,-400.0,0.00030136,120]
[380343046,1755699353848,-750.62,0.00030136,120]
[380343047,1755699353875,-863.24,0.00030136,120]
[380343048,1755699353901,-1150.21,0.00030136,120]
[380343049,1755699353929,-586.77,0.00030136,120]
[380343050,1755699353956,-400.0,0.00030136,120]
[380343051,1755699353985,-2242.84,0.00030136,120]
[380343052,1755699354012,-400.0,0.00030136,120]
[380343053,1755699354039,-400.0,0.00030136,120]
[380343054,1755699354065,-1099.74,0.00030136,120]
[380343055,1755699354091,-400.0,0.00030136,120]
[380343056,1755699354116,-400.0,0.00030136,120]
[380343057,1755699354143,-435.57,0.00030136,120]
[380343058,1755699354170,-1185.98,0.00030136,120]
[380343059,1755699354197,-1027.25,0.00030136,120]
[380343060,1755699354224,-1388.12,0.00030136,120]
[380343061,1755699354251,-1387.59,0.00030136,120]
[380343062,1755699354279,-400.0,0.00030136,120]
[380343063,1755699354305,-1349.67,0.00030136,120]
[380343064,1755699354333,-472.94,0.00030136,120]
[380343065,1755699354360,-536.5,0.00030136,120]
[380343066,1755699354386,-400.0,0.00030136,120]
[380343067,1755699354413,-1138.77,0.00030136,120]
[380343068,1755699354440,-1801.53,0.00030136,120]
[380343069,1755699354467,-1361.69,0.00030136,120]
[380343070,1755699354494,-400.0,0.00030136,120]
[380343071,1755699354522,-707.49,0.00030136,120]
[380343072,1755699354553,-400.0,0.00030136,120]
[380343073,1755699354582,-1210.63,0.00030136,120]
[380343074,1755699354609,-1332.77,0.00030136,120]
[380343075,1755699354637,-400.0,0.00030136,120]
[380343076,1755699354664,-405.39,0.00030136,120]
[380343077,1755699354690,-580.39,0.00030136,120]
[380343078,1755699354717,-1443.67,0.00030136,120]
[380343079,1755699354747,-1522.17,0.00030136,120]
[380343080,1755699354773,-400.0,0.00030136,120]
[380343081,1755699355112,-1257.44,0.00030136,120]
[380343082,1755699355144,-440.19,0.00030136,120]
[380343083,1755699355175,-1683.64,0.00030136,120]
[380343084,1755699355201,-1528.59,0.00030136,120]
[380343085,1755699355228,-400.0,0.00030136,120]
[380343086,1755699355254,-613.56,0.00030136,120]
[380343087,1755699355283,-400.0,0.00030136,120]
[380343088,1755699355310,-1411.87,0.00030136,120]
[380343089,1755699355337,-400.0,0.00030136,120]
[380343090,1755699355363,-669.59,0.00030136,120]
[380343091,1755699355390,-1046.34,0.00030136,120]
[380343092,1755699355416,-400.0,0.00030136,120]
[380343093,1755699355443,-1997.88,0.00030136,120]
[380343094,1755699355470,-1683.99,0.00030136,120]
[380343095,1755699355498,-1134.41,0.00030136,120]
[380343096,1755699355525,-400.0,0.00030136,120]
[380343097,1755699355554,-681.56,0.00030136,120]
[380343098,1755699355581,-400.0,0.00030136,120]
[380343099,1755699355609,-1258.52,0.00030136,120]
[380343100,1755699355637,-400.0,0.00030136,120]
[380343101,1755699355664,-2453.72,0.00030136,120]
[380343102,1755699355690,-1368.85,0.00030136,120]
[380343103,1755699355718,-929.21,0.00030136,120]
[380343104,1755699355748,-400.0,0.00030136,120]
[380343105,1755699355775,-400.0,0.00030136,120]
[380343106,1755699355803,-400.0,0.00030136,120]
[380343107,1755699355831,-400.0,0.00030136,120]
[380343108,1755699355858,-1625.6,0.00030136,120]
[380343109,1755699355886,-915.1,0.00030136,120]
[380343110,1755699355913,-915.1,0.00030136,120]
[380343111,1755699355940,-915.1,0.00030136,120]
[380343112,1755699355968,-485.07,0.00030136,120]
[380343113,1755699355997,-915.1,0.00030136,120]
[380343114,1755699356024,-400.0,0.00030136,120]
[380343115,1755699356052,-915.1,0.00030136,120]
[380343116,1755699356079,-310.0,0.00030136,120]
[380343117,1755699356108,-915.1,0.00030136,120]
[380343118,1755699356141,-915.1,0.00030136,120]
[380343119,1755699356168,-915.1,0.00030136,120]
[380343120,1755699356196,-915.1,0.00030136,120]
[380343121,1755699356224,-915.1,0.00030136,120]
[380343122,1755699356251,-915.1,0.00030136,120]
[380343123,1755699356276,-915.1,0.00030136,120]
[380343124,1755699356303,-1334.61,0.00030136,120]
[380343125,1755699356328,-915.1,0.00030136,120]
[380343126,1755699356353,-400.0,0.00030136,120]
[380343127,1755699356379,-915.1,0.00030136,120]
[380343128,1755699356405,-291.37358954,0.00030136,120]
[380343129,1755699356432,-915.1,0.00030136,120]
[380343130,1755699356458,-915.1,0.00030136,120]
[380343131,1755699356487,-915.1,0.00030136,120]
[380343132,1755699356515,-466.7,0.00030136,120]
[380343133,1755699356541,-400.0,0.00030136,120]
[380343134,1755699356567,-1602.56,0.00030136,120]
[380343135,1755699356595,-915.1,0.00030136,120]
[380343136,1755699356624,-915.1,0.00030136,120]
[380343137,1755699356650,-915.1,0.00030136,120]
[380343138,1755699356677,-915.1,0.00030136,120]
[380343139,1755699356704,-915.1,0.00030136,120]
[380343140,1755699356729,-400.0,0.00030136,120]
[380343141,1755699356754,-1082.25,0.00030136,120]
[380343142,1755699356780,-915.1,0.00030136,120]
[380343143,1755699356807,-915.21175113,0.00030136,120]
[380343144,1755699356832,-1500.43,0.00030136,120]
[380343145,1755699356857,-981.42,0.00030136,120]
[380343146,1755699356882,-400.0,0.00030136,120]
[380343147,1755699356908,-879.7,0.00030136,120]
[380343148,1755699356935,-474.86,0.00030136,120]
[380343149,1755699356959,-516.73,0.00030136,120]
[380343150,1755699356986,-400.0,0.00030136,120]
[380343151,1755699357012,-786.04,0.00030136,120]
[380343152,1755699357039,-1395.57,0.00030136,120]
[380343153,1755699357065,-1595.2,0.00030136,120]
[380343154,1755699357090,-1028.52,0.00030136,120]
[380343155,1755699357118,-400.0,0.00030136,120]
[380343156,1755699357144,-1268.94,0.00030136,120]
[380343157,1755699357170,-555.36,0.00030136,120]
[380343158,1755699357196,-400.0,0.00030136,120]
[380343159,1755699357222,-866.54,0.00030136,120]
[380343160,1755699357248,-809.89,0.00030136,120]
[380343161,1755699357276,-400.0,0.00030136,120]
[380343162,1755699357302,-978.48,0.00030136,120]
[380343163,1755699357328,-651.83,0.00030136,120]
[380343164,1755699357355,-1450.48,0.00030136,120]
[380343165,1755699357380,-400.0,0.00030136,90]
[380343166,1755699357405,-806.44,0.00030136,120]
[380343167,1755699357431,-400.0,0.00030136,120]
[380343168,1755699357458,-400.02191647,0.00030136,120]
[380343169,1755699357486,-895.94,0.00030136,120]
[380343170,1755699357511,-1040.09,0.00030136,120]
[380343171,1755699357538,-459.78,0.00030136,120]
[380343172,1755699357563,-645.1,0.00030136,120]
[380343173,1755699357588,-1163.94,0.00030136,120]
[380343174,1755699357615,-400.0,0.00030136,120]
[380343175,1755699357644,-559.73,0.00030136,120]
[380343176,1755699357672,-400.0,0.00030136,120]
[380343177,1755699357700,-402.33,0.00030136,120]
[380343178,1755699357726,-815.46,0.00030136,120]
[380343179,1755699357752,-400.0,0.00030136,120]
[380343180,1755699357778,-400.0,0.00030136,120]
[380343181,1755699357804,-1379.0,0.00030136,120]
[380343182,1755699357830,-400.0,0.00030136,120]
[380343183,1755699357857,-660.66,0.00030136,120]
[380343184,1755699357884,-796.64,0.00030136,120]
[380343185,1755699357909,-798.55,0.00030136,120]
[380343186,1755699357935,-400.0,0.00030136,120]
[380343187,1755699357961,-400.0,0.00030136,120]
[380343188,1755699357990,-1006.66,0.00030136,120]
[380343189,1755699358017,-989.49,0.00030136,120]
[380343190,1755699358045,-1629.24,0.00030136,120]
[380343191,1755699358073,-400.0,0.00030136,120]
[380343192,1755699358100,-1745.07,0.00030136,120]
[380343193,1755699358127,-1052.36,0.00030136,120]
[380343194,1755699358155,-470.51,0.00030136,120]
[380343195,1755699358181,-1336.47,0.00030136,120]
[380343196,1755699358208,-400.0,0.00030136,120]
[380343197,1755699358562,-400.0,0.00030136,120]
[380343198,1755699358589,-400.0,0.00030136,120]
[380343199,1755699358616,-400.0,0.00030136,120]
[380343200,1755699358642,-500.0,0.00030136,120]
[380343201,1755699358667,-500.0,0.00030136,120]
[380343202,1755699358692,-400.0,0.00030136,120]
[380343203,1755699358719,-500.0,0.00030136,120]
[380343204,1755699358746,-504.55301837,0.00030136,120]
[380343205,1755699358772,-400.0,0.00030136,120]
[380343206,1755699358800,-1926.06,0.00030136,120]
[380343207,1755699358828,-734.3,0.00030136,120]
[380343208,1755699358854,-1520.01,0.00030136,120]
[380343209,1755699358880,-496.32,0.00030136,120]
[380343210,1755699358908,-2107.63,0.00030136,120]
[380343211,1755699358934,-400.0,0.00030136,120]
[380343212,1755699358960,-546.18,0.00030136,120]
[380343213,1755699358989,-1658.96,0.00030136,120]
[380343214,1755699359017,-585.45,0.00030136,120]
[380343215,1755699359043,-400.0,0.00030136,120]
[380343216,1755699359068,-1230.49,0.00030136,120]
[380343217,1755699359094,-1148.63,0.00030136,120]
[380343218,1755699359119,-400.0,0.00030136,120]
[380343219,1755699359147,-400.0,0.00030136,120]
[380343220,1755699359174,-735.44,0.00030136,120]
[380343221,1755699359200,-886.8,0.00030136,120]
[380343222,1755699359228,-400.0,0.00030136,120]
[380343223,1755699359254,-1155.56,0.00030136,120]
[380343224,1755699359280,-1175.6,0.00030136,120]
[380343225,1755699359307,-400.0,0.00030136,120]
[380343226,1755699359334,-1773.82,0.00030136,120]
[380343227,1755699359361,-1318.67,0.00030136,120]
[380343228,1755699359388,-400.0,0.00030136,120]
[380343229,1755699359442,-719.41,0.00030136,120]
[380343230,1755699359491,-1736.8,0.00030136,90]
[380343231,1755699359541,-400.0,0.00030136,120]
[380343232,1755699359589,-1858.64,0.00030136,120]
[380343233,1755699359640,-1135.7,0.00030136,120]
[380343234,1755699359688,-621.85,0.00030136,120]
[380343235,1755699359735,-400.0,0.00030136,120]
[380343236,1755699359783,-400.0,0.00030136,120]
[380343237,1755699359830,-400.0,0.00030136,120]
[380343238,1755699359875,-1994.71,0.00030136,120]
[380343239,1755699359920,-400.0,0.00030136,120]
[380343240,1755699359966,-400.0,0.00030136,120]
[380343241,1755699360014,-400.0,0.00030136,120]
[380343242,1755699360074,-400.0,0.00030136,120]
[380343243,1755699360123,-400.0,0.00030136,120]
[380343244,1755699360175,-499.62,0.00030136,120]
[380343245,1755699360228,-400.0,0.00030136,120]
[380343246,1755699360279,-1525.16,0.00030136,120]
[380343247,1755699360332,-400.0,0.00030136,120]
[380343248,1755699360386,-400.0,0.00030136,120]
[380343249,1755699360439,-547.86,0.00030136,120]
[380343250,1755699360491,-400.0,0.00030136,120]
[380343251,1755699360545,-1417.65,0.00030136,120]
[380343252,1755699360597,-175.6238584,0.00030136,120]
[380343253,1755699360651,-1049.34,0.00030136,120]
[380343254,1755699360700,-400.0,0.00030136,120]
[380343255,1755699360749,-400.0,0.00030136,120]
[380343256,1755699360794,-400.0,0.00030136,120]
[380343257,1755699360839,-1146.94,0.00030136,120]
[380343258,1755699360886,-1152.92,0.00030136,120]
[380343259,1755699360931,-781.83,0.00030136,120]
[380343260,1755699360982,-449.31,0.00030136,120]
[380343261,1755699361033,-400.0,0.00030136,120]
[380343262,1755699361085,-400.0,0.00030136,120]
[380343263,1755699361132,-400.0,0.00030136,120]
[380343264,1755699361178,-2189.11,0.00030136,120]
[380343265,1755699361225,-400.0,0.00030136,120]
[380343266,1755699361280,-400.0,0.00030136,120]
[380343267,1755699361327,-832.64,0.00030136,120]
[380343268,1755699361376,-613.0,0.00030136,120]
[380343269,1755699361423,-400.0,0.00030136,120]
[380343270,1755699361470,-435.8,0.00030136,120]
[380343271,1755699361521,-400.0,0.00030136,120]
[380343272,1755699361574,-400.0,0.00030136,120]
[380343273,1755699361623,-1332.88,0.00030136,120]
[380343274,1755699361670,-1610.17,0.00030136,120]
[380343275,1755699361717,-400.0,0.00030136,120]
[380343276,1755699361770,-400.0,0.00030136,120]
[380343277,1755699361819,-400.0,0.00030136,120]
[380343278,1755699361865,-400.0,0.00030136,120]
[380343279,1755699361912,-1431.1,0.00030136,120]
[380343280,1755699361958,-400.0,0.00030136,120]
[380343281,1755699362006,-1138.88,0.00030136,120]
[380343282,1755699362053,-927.19,0.00030136,120]
[380343283,1755699362103,-400.0,0.00030136,120]
[380343284,1755699362155,-848.4,0.00030136,120]
[380343285,1755699362206,-1197.64,0.00030136,120]
[380343286,1755699362255,-1616.33,0.00030136,120]
[380343287,1755699362305,-1616.33,0.00030136,120]
[380343288,1755699362355,-1616.33,0.00030136,120]
[380343289,1755699362405,-400.0,0.00030136,120]
[380343290,1755699362456,-1616.33,0.00030136,120]
[380343291,1755699362505,-400.0,0.00030136,120]
[380343292,1755699362555,-1616.33,0.00030136,120]
[380343293,1755699362604,-2792.34,0.00030136,120]
[380343294,1755699362666,-1616.33,0.00030136,120]
[380343295,1755699362713,-1616.33,0.00030136,120]
[380343296,1755699362762,-1616.33,0.00030136,120]
[380343297,1755699362808,-810.11,0.00030136,120]
[380343298,1755699362853,-1616.33,0.00030136,120]
[380343299,1755699362901,-1616.33,0.00030136,120]
[380343300,1755699362950,-1002.05,0.00030136,120]
[380343301,1755699363005,-1616.33,0.00030136,120]
[380343302,1755699363060,-1616.33,0.00030136,120]
[380343303,1755699363115,-1116.85,0.00030136,120]
[380343304,1755699363169,-1616.33,0.00030136,120]
[380343305,1755699363222,-1616.33,0.00030136,120]
[380343306,1755699363279,-1616.33,0.00030136,120]
[380343307,1755699363333,-1108.87,0.00030136,120]
[380343308,1755699363386,-400.0,0.00030136,120]
[380343309,1755699363440,-1616.33,0.00030136,120]
[380343310,1755699363494,-1616.33,0.00030136,120]
[380343311,1755699363548,-1616.33,0.00030136,120]
[380343312,1755699363600,-1616.33,0.00030136,120]
[380343313,1755699364057,-817.2,0.00030136,120]
[380343314,1755699364111,-2037.92,0.00030136,120]
[380343315,1755699364165,-1616.33,0.00030136,120]
[380343316,1755699364218,-1616.33,0.00030136,120]
[380343317,1755699364275,-1648.39,0.00030136,120]
[380343318,1755699364329,-1616.33,0.00030136,120]
[380343319,1755699364388,-1616.33,0.00030136,120]
[380343320,1755699364441,-419.85,0.00030136,120]
[380343321,1755699364500,-400.0,0.00030136,120]
[380343322,1755699364549,-1616.42057523,0.00030136,120]
[380343323,1755699364599,-400.0,0.00030136,120]
[380343324,1755699364653,-400.0,0.00030136,120]
[380343325,1755699364709,-400.0,0.00030136,120]
[380343326,1755699364771,-400.0,0.00030136,120]
[380343327,1755699364829,-438.44,0.00030136,120]
[380343328,1755699364880,-400.0,0.00030136,120]
[380343329,1755699364932,-400.0,0.00030136,120]
[380343330,1755699364987,-1377.29,0.00030136,120]
[380343331,1755699365036,-875.02,0.00030136,120]
[380343332,1755699365085,-426.08,0.00030136,120]
[380343333,1755699365134,-967.35,0.00030136,120]
[380343334,1755699365183,-400.18229078,0.00030136,120]
[380343335,1755699365235,-400.0,0.00030136,120]
[380343336,1755699365286,-427.11,0.00030136,120]
[380343337,1755699365335,-441.62,0.00030136,120]
[380343338,1755699365386,-1007.05,0.00030136,120]
[380343339,1755699365440,-400.0,0.00030136,120]
[380343340,1755699365491,-400.0,0.00030136,120]
[380343341,1755699365541,-400.0,0.00030136,120]
[380343342,1755699365593,-400.0,0.00030136,120]
[380343343,1755699365645,-1658.79,0.00030136,120]
[380343344,1755699365702,-701.18,0.00030136,120]
[380343345,1755699365753,-400.0,0.00030136,120]
[380343346,1755699365811,-400.0,0.00030136,120]
[380343347,1755699365863,-1214.08,0.00030136,120]
[380343348,1755699365914,-461.66,0.00030136,120]
[380343349,1755699365965,-1034.46,0.00030136,120]
[380343350,1755699366020,-911.08,0.00030136,120]
[380343351,1755699366071,-400.0,0.00030136,120]
[380343352,1755699366122,-1103.84,0.00030136,120]
[380343353,1755699366173,-500.0,0.00030136,120]
[380343354,1755699366224,-500.0,0.00030136,120]
[380343355,1755699366280,-500.0,0.00030136,120]
[380343356,1755699366343,-500.0,0.00030136,120]
[380343357,1755699366400,-400.0,0.00030136,120]
[380343358,1755699366456,-513.30981079,0.00030136,120]
[380343359,1755699366512,-158.43612612,0.00030136,120]
[380343360,1755699366569,-1239.44,0.00030136,120]
[380343361,1755699366623,-400.0,0.00030136,120]
[380343362,1755699366676,-400.0,0.00030136,120]
[380343363,1755699366734,-1666.78,0.00030136,120]
[380343364,1755699366799,-400.0,0.00030136,120]
[380343365,1755699366874,-3103.4,0.00030136,120]
[380343366,1755699366930,-502.64,0.00030136,120]
[380343367,1755699366987,-3103.4,0.00030136,120]
[380343368,1755699367041,-3103.4,0.00030136,120]
[380343369,1755699367093,-3103.4,0.00030136,120]
[380343370,1755699367151,-400.0,0.00030136,120]
[380343371,1755699367208,-3103.4,0.00030136,120]
[380343372,1755699367263,-3103.4,0.00030136,120]
[380343373,1755699367318,-3103.4,0.00030136,120]
[380343374,1755699367369,-1010.73,0.00030136,120]
[380343375,1755699367420,-3103.4,0.00030136,120]
[380343376,1755699367469,-3103.4,0.00030136,120]
[380343377,1755699367521,-3103.4,0.00030136,120]
[380343378,1755699367572,-3103.4,0.00030136,120]
[380343379,1755699367622,-3103.4,0.00030136,120]
[380343380,1755699367670,-3103.4,0.00030136,120]
[380343381,1755699367718,-1375.75,0.00030136,120]
[380343382,1755699367768,-3103.4,0.00030136,120]
[380343383,1755699367818,-2278.29,0.00030136,120]
[380343384,1755699367869,-3103.4,0.00030136,120]
[380343385,1755699367920,-3103.4,0.00030136,120]
[380343386,1755699367971,-400.0,0.00030136,120]
[380343387,1755699368029,-3103.4,0.00030136,120]
[380343388,1755699368082,-3103.4,0.00030136,120]
[380343389,1755699368134,-3103.4,0.00030136,120]
[380343390,1755699368185,-400.0,0.00030136,120]
[380343391,1755699368238,-1077.99,0.00030136,120]
[380343392,1755699368294,-1289.57,0.00030136,120]
[380343393,1755699368349,-400.0,0.00030136,120]
[380343394,1755699368411,-479.1,0.00030136,120]
[380343395,1755699368463,-1145.61,0.00030136,120]
[380343396,1755699368518,-1565.25,0.00030136,120]
[380343397,1755699368570,-400.0,0.00030136,120]
[380343398,1755699368620,-752.18,0.00030136,120]
[380343399,1755699368670,-400.0,0.00030136,120]
[380343400,1755699368720,-1256.36,0.00030136,120]
[380343401,1755699368772,-400.0,0.00030136,120]
[380343402,1755699368823,-400.0,0.00030136,120]
[380343403,1755699368871,-1453.16,0.00030136,120]
[380343404,1755699368921,-400.0,0.00030136,120]
[380343405,1755699368971,-400.0,0.00030136,120]
[380343406,1755699369023,-1269.21,0.00030136,120]
[380343407,1755699369075,-1131.55,0.00030136,120]
[380343408,1755699369123,-400.0,0.00030136,120]
[380343409,1755699369172,-914.95,0.00030136,120]
[380343410,1755699369222,-3103.4,0.00030136,120]
[380343411,1755699369274,-3103.4,0.00030136,120]
[380343412,1755699369325,-1014.66,0.00030136,120]
[380343413,1755699369382,-960.14,0.00030136,120]
[380343414,1755699369434,-566.23,0.00030136,120]
[380343415,1755699369487,-3103.4,0.00030136,120]
[380343416,1755699369538,-1102.81,0.00030136,120]
[380343417,1755699369593,-3103.4,0.00030136,120]
[380343418,1755699369652,-3103.59927542,0.00030136,120]
[380343419,1755699369701,-802.19,0.00030136,120]
[380343420,1755699369750,-853.09,0.00030136,120]
[380343421,1755699369801,-853.09,0.00030136,120]
[380343422,1755699369851,-400.0,0.00030136,120]
[380343423,1755699369902,-400.0,0.00030136,120]
[380343424,1755699369956,-400.0,0.00030136,120]
[380343425,1755699370006,-853.09,0.00030136,120]
[380343426,1755699370054,-853.09,0.00030136,120]
[380343427,1755699370102,-853.09,0.00030136,120]
[380343428,1755699370151,-853.09,0.00030136,120]
[380343429,1755699370880,-853.09,0.00030136,120]
[380343430,1755699370945,-400.0,0.00030136,120]
[380343431,1755699371010,-853.09,0.00030136,120]
[380343432,1755699371073,-853.09,0.00030136,120]
[380343433,1755699371124,-853.09,0.00030136,120]
[380343434,1755699371175,-853.09,0.00030136,120]
[380343435,1755699371234,-2220.35,0.00030136,120]
[380343436,1755699371308,-853.09,0.00030136,120]
[380343437,1755699371375,-853.09,0.00030136,120]
[380343438,1755699371422,-400.0,0.00030136,120]
[380343439,1755699371469,-853.09,0.00030136,120]
[380343440,1755699371517,-1017.64,0.00030136,120]
[380343441,1755699371563,-853.09,0.00030136,120]
[380343442,1755699371609,-506.72,0.00030136,120]
[380343443,1755699371658,-853.09,0.00030136,120]
[380343444,1755699371704,-853.09,0.00030136,120]
[380343445,1755699371750,-853.09,0.00030136,120]
[380343446,1755699371795,-1339.29,0.00030136,120]
[380343447,1755699371842,-853.09,0.00030136,120]
[380343448,1755699371888,-853.09,0.00030136,120]
[380343449,1755699371933,-853.09,0.00030136,120]
[380343450,1755699371980,-853.09,0.00030136,120]
[380343451,1755699372033,-853.09,0.00030136,120]
[380343452,1755699372086,-400.0,0.00030136,120]
[380343453,1755699372138,-853.31909495,0.00030136,120]
[380343454,1755699372185,-1173.89,0.00030136,120]
[380343455,1755699372237,-1148.25,0.00030136,120]
[380343456,1755699372284,-400.0,0.00030136,120]
[380343457,1755699372331,-400.0,0.00030136,120]
[380343458,1755699372376,-400.0,0.00030136,120]
[380343459,1755699372423,-1358.23,0.00030136,120]
[380343460,1755699372468,-1279.37,0.00030136,120]
[380343461,1755699372516,-1910.26,0.00030136,120]
[380343462,1755699372563,-1198.26,0.00030136,120]
[380343463,1755699372610,-400.0,0.00030136,120]
[380343464,1755699372659,-400.0,0.00030136,120]
[380343465,1755699372707,-921.55,0.00030136,120]
[380343466,1755699372752,-400.0,0.00030136,120]
[380343467,1755699372799,-1707.75,0.00030136,120]
[380343468,1755699372846,-969.8,0.00030136,120]
[380343469,1755699372892,-1713.0,0.00030136,120]
[380343470,1755699372941,-400.0,0.00030136,120]
[380343471,1755699372992,-1064.96,0.00030136,120]
[380343472,1755699373040,-467.0,0.00030136,120]
[380343473,1755699373088,-4854.72,0.00030136,120]
[380343474,1755699373136,-1528.71,0.00030136,120]
[380343475,1755699373185,-400.0,0.00030136,120]
[380343476,1755699373248,-692.31,0.00030136,120]
[380343477,1755699373300,-692.31,0.00030136,120]
[380343478,1755699373350,-522.5,0.00030136,120]
[380343479,1755699373401,-692.31,0.00030136,120]
[380343480,1755699373453,-400.0,0.00030136,120]
[380343481,1755699373502,-692.31,0.00030136,120]
[380343482,1755699373553,-692.31,0.00030136,120]
[380343483,1755699373599,-692.31,0.00030136,120]
[380343484,1755699373647,-692.31,0.00030136,120]
[380343485,1755699373695,-692.31,0.00030136,120]
[380343486,1755699373742,-1461.91,0.00030136,120]
[380343487,1755699373791,-969.2,0.00030136,120]
[380343488,1755699373836,-692.31,0.00030136,120]